[Event "*** SCC Grand Prix: Titled Tuesday Blitz"]
[Site "Chess.com"]
[Date "2020.07.14"]
[Round "8"]
[White "Igor_Lysyj"]
[Black "JosefineHeinemann"]
[Result "1-0"]
[WhiteElo "2808"]
[BlackElo "2643"]
[TimeControl "180+1"]
[EndTime "11:34:13 PDT"]
[Termination "Igor_Lysyj won by resignation"]

1. d4 {[%clk 0:03:00.9]} 1... Nf6 {[%clk 0:02:56.9]} 2. c4 {[%clk 0:03:00.6]}
2... g6 {[%clk 0:02:57]} 3. Nc3 {[%clk 0:02:59.8]} 3... d5 {[%clk 0:02:57.7]} 4.
cxd5 {[%clk 0:02:59.4]} 4... Nxd5 {[%clk 0:02:58.6]} 5. e4 {[%clk 0:02:59.7]}
5... Nxc3 {[%clk 0:02:59.3]} 6. bxc3 {[%clk 0:02:59.9]} 6... c5 {[%clk
0:03:00.2]} 7. Bg5 {[%clk 0:02:59]} 7... Bg7 {[%clk 0:03:00.4]} 8. Rc1 {[%clk
0:02:58.1]} 8... O-O {[%clk 0:03:00.2]} 9. Nf3 {[%clk 0:02:57.6]} 9... Nd7
{[%clk 0:02:59.2]} 10. Bd3 {[%clk 0:02:49.7]} 10... Re8 {[%clk 0:02:55.1]} 11.
O-O {[%clk 0:02:48.7]} 11... h6 {[%clk 0:02:52.4]} 12. Be3 {[%clk 0:02:46.2]}
12... b6 {[%clk 0:02:49.9]} 13. h3 {[%clk 0:02:40.6]} 13... e5 {[%clk
0:02:46.4]} 14. Qd2 {[%clk 0:02:37.1]} 14... Kh7 {[%clk 0:02:43.7]} 15. d5
{[%clk 0:02:37.3]} 15... Nf8 {[%clk 0:02:39.1]} 16. Bb5 {[%clk 0:02:28.5]} 16...
Bd7 {[%clk 0:02:37.5]} 17. Bxd7 {[%clk 0:02:27.4]} 17... Qxd7 {[%clk 0:02:38.4]}
18. c4 {[%clk 0:02:26]} 18... f5 {[%clk 0:02:38.5]} 19. Qc2 {[%clk 0:02:19]}
19... f4 {[%clk 0:02:36.8]} 20. Bd2 {[%clk 0:02:19]} 20... g5 {[%clk 0:02:37]}
21. Bc3 {[%clk 0:02:12.3]} 21... Ng6 {[%clk 0:02:36.8]} 22. Qd3 {[%clk
0:02:09.9]} 22... Rg8 {[%clk 0:02:32.8]} 23. Nh2 {[%clk 0:02:01.7]} 23... h5
{[%clk 0:02:31.5]} 24. Qf3 {[%clk 0:02:00.5]} 24... Kh6 {[%clk 0:02:29.1]} 25.
g3 {[%clk 0:01:55.3]} 25... Bf6 {[%clk 0:02:25.4]} 26. g4 {[%clk 0:01:53.7]}
26... Nh4 {[%clk 0:02:24.6]} 27. Qd3 {[%clk 0:01:43.1]} 27... f3 {[%clk
0:02:05.5]} 28. Kh1 {[%clk 0:01:41.8]} 28... Raf8 {[%clk 0:01:57.1]} 29. Rg1
{[%clk 0:01:41.2]} 29... Bh8 {[%clk 0:01:19.5]} 30. Rg3 {[%clk 0:01:38.3]} 30...
Rf4 {[%clk 0:01:18.3]} 31. Rcg1 {[%clk 0:01:34.7]} 31... hxg4 {[%clk 0:01:11.6]}
32. Nxg4+ {[%clk 0:01:29.1]} 32... Rxg4 {[%clk 0:01:06.7]} 33. Rxg4 {[%clk
0:01:27.9]} 33... Rg6 {[%clk 0:01:03.5]} 34. Bd2 {[%clk 0:01:23.5]} 34... Bf6
{[%clk 0:01:03.1]} 35. Rxh4+ {[%clk 0:01:22.4]} 1-0

[Event "*** SCC Grand Prix: Titled Tuesday Blitz"]
[Site "Chess.com"]
[Date "2020.07.14"]
[Round "8"]
[White "DinaBelenkaya"]
[Black "rugbyclub"]
[Result "1-0"]
[WhiteElo "2265"]
[BlackElo "2109"]
[TimeControl "180+1"]
[EndTime "11:34:15 PDT"]
[Termination "DinaBelenkaya won by checkmate"]

1. e4 {[%clk 0:03:00.9]} 1... e5 {[%clk 0:01:45.6]} 2. Nf3 {[%clk 0:02:59.3]}
2... Nc6 {[%clk 0:01:45]} 3. d4 {[%clk 0:02:58.3]} 3... exd4 {[%clk 0:01:44.6]}
4. Nxd4 {[%clk 0:02:59.2]} 4... Nf6 {[%clk 0:01:44.9]} 5. Nxc6 {[%clk
0:02:57.3]} 5... bxc6 {[%clk 0:01:45.5]} 6. Bd3 {[%clk 0:02:58.2]} 6... d5
{[%clk 0:01:45]} 7. exd5 {[%clk 0:02:59.1]} 7... cxd5 {[%clk 0:01:43.9]} 8. O-O
{[%clk 0:02:59.3]} 8... Be7 {[%clk 0:01:42.2]} 9. c4 {[%clk 0:02:59.4]} 9...
dxc4 {[%clk 0:01:39.5]} 10. Bxc4 {[%clk 0:03:00.3]} 10... O-O {[%clk 0:01:39.3]}
11. Nc3 {[%clk 0:02:58.9]} 11... c6 {[%clk 0:01:38.9]} 12. Bg5 {[%clk
0:02:56.4]} 12... h6 {[%clk 0:01:37.9]} 13. Bh4 {[%clk 0:02:56]} 13... Qb6
{[%clk 0:01:37.9]} 14. Qc2 {[%clk 0:02:54.2]} 14... Bg4 {[%clk 0:01:32.7]} 15.
Rfe1 {[%clk 0:02:53.6]} 15... Bb4 {[%clk 0:01:30.8]} 16. Bxf6 {[%clk 0:02:51.5]}
16... gxf6 {[%clk 0:01:28.6]} 17. Ne4 {[%clk 0:02:51.6]} 17... Kg7 {[%clk
0:01:22]} 18. Ng3 {[%clk 0:02:31.6]} 18... Bxe1 {[%clk 0:01:21]} 19. Rxe1 {[%clk
0:02:25.6]} 19... Rfe8 {[%clk 0:01:21.1]} 20. Rc1 {[%clk 0:02:19.5]} 20... Re5
{[%clk 0:01:18.9]} 21. h3 {[%clk 0:02:16.5]} 21... Bd7 {[%clk 0:01:13]} 22. Qd1
{[%clk 0:02:14.9]} 22... Rae8 {[%clk 0:01:07.3]} 23. Nh5+ {[%clk 0:02:14.8]}
23... Kf8 {[%clk 0:01:00.9]} 24. Qxd7 {[%clk 0:01:57.8]} 24... Re1+ {[%clk
0:00:52.2]} 25. Rxe1 {[%clk 0:01:57.2]} 25... Rxe1+ {[%clk 0:00:52.8]} 26. Kh2
{[%clk 0:01:57.4]} 26... Qb8+ {[%clk 0:00:52.9]} 27. g3 {[%clk 0:01:53.2]} 27...
Qe8 {[%clk 0:00:51.2]} 28. Qg4 {[%clk 0:01:48.9]} 28... Qe5 {[%clk 0:00:45.4]}
29. Qg7+ {[%clk 0:01:47.7]} 29... Ke8 {[%clk 0:00:43.7]} 30. Qxf7+ {[%clk
0:01:44.8]} 30... Kd8 {[%clk 0:00:44.2]} 31. Nxf6 {[%clk 0:01:38.3]} 31... Rc1
{[%clk 0:00:41.6]} 32. Qd7# {[%clk 0:01:36.5]} 1-0

[Event "*** SCC Grand Prix: Titled Tuesday Blitz"]
[Site "Chess.com"]
[Date "2020.07.14"]
[Round "8"]
[White "DonBroca"]
[Black "Klavdia_Nik"]
[Result "0-1"]
[WhiteElo "2105"]
[BlackElo "2063"]
[TimeControl "180+1"]
[EndTime "11:34:15 PDT"]
[Termination "Klavdia_Nik won by resignation"]

1. e4 {[%clk 0:03:00.9]} 1... c5 {[%clk 0:02:53.9]} 2. Nf3 {[%clk 0:03:00.4]}
2... d6 {[%clk 0:02:52.3]} 3. d4 {[%clk 0:03:00.7]} 3... cxd4 {[%clk 0:02:52.7]}
4. Nxd4 {[%clk 0:03:01.1]} 4... Nf6 {[%clk 0:02:52.9]} 5. Nc3 {[%clk 0:03:00.2]}
5... a6 {[%clk 0:02:51.5]} 6. Bg5 {[%clk 0:03:00.2]} 6... e6 {[%clk 0:02:48.5]}
7. f4 {[%clk 0:03:00.3]} 7... Be7 {[%clk 0:02:48.1]} 8. Qf3 {[%clk 0:02:58.2]}
8... Qc7 {[%clk 0:02:46.1]} 9. O-O-O {[%clk 0:02:55.8]} 9... Nbd7 {[%clk
0:02:40.7]} 10. Be2 {[%clk 0:02:52.3]} 10... Nc5 {[%clk 0:02:32.2]} 11. Rhe1
{[%clk 0:02:31.1]} 11... Rb8 {[%clk 0:02:15.1]} 12. e5 {[%clk 0:02:07.7]} 12...
dxe5 {[%clk 0:01:45.4]} 13. fxe5 {[%clk 0:02:08.6]} 13... Nd5 {[%clk 0:01:41.2]}
14. Bxe7 {[%clk 0:01:47.2]} 14... Nxe7 {[%clk 0:01:35.3]} 15. Bf1 {[%clk
0:00:59.6]} 15... O-O {[%clk 0:01:27.6]} 16. g4 {[%clk 0:00:46.3]} 16... b5
{[%clk 0:01:26.9]} 17. g5 {[%clk 0:00:46.1]} 17... Bb7 {[%clk 0:01:23.6]} 18.
Qg3 {[%clk 0:00:42.2]} 18... b4 {[%clk 0:01:18.8]} 19. Ne4 {[%clk 0:00:38.7]}
19... Nxe4 {[%clk 0:01:13.4]} 0-1

[Event "*** SCC Grand Prix: Titled Tuesday Blitz"]
[Site "Chess.com"]
[Date "2020.07.14"]
[Round "8"]
[White "djano"]
[Black "swayamsm"]
[Result "0-1"]
[WhiteElo "2464"]
[BlackElo "2607"]
[TimeControl "180+1"]
[EndTime "11:34:24 PDT"]
[Termination "swayamsm won by resignation"]

1. d4 {[%clk 0:03:00.9]} 1... e6 {[%clk 0:03:00.9]} 2. Bf4 {[%clk 0:02:57.8]}
2... b6 {[%clk 0:02:39.4]} 3. e3 {[%clk 0:02:54.1]} 3... Bb7 {[%clk 0:02:39.9]}
4. Nf3 {[%clk 0:02:48.1]} 4... f5 {[%clk 0:02:40.1]} 5. h3 {[%clk 0:02:41.8]}
5... Nf6 {[%clk 0:02:40.5]} 6. Be2 {[%clk 0:02:41.8]} 6... Be7 {[%clk 0:02:41]}
7. c4 {[%clk 0:02:39.1]} 7... O-O {[%clk 0:02:41.9]} 8. Nc3 {[%clk 0:02:37.4]}
8... Ne4 {[%clk 0:02:42.1]} 9. Qc2 {[%clk 0:02:29.8]} 9... Nxc3 {[%clk
0:02:40.4]} 10. Qxc3 {[%clk 0:02:25.2]} 10... a5 {[%clk 0:02:40.7]} 11. O-O
{[%clk 0:02:21.4]} 11... d6 {[%clk 0:02:39.6]} 12. c5 {[%clk 0:02:05.5]} 12...
dxc5 {[%clk 0:02:36.7]} 13. Rfd1 {[%clk 0:01:52.3]} 13... Bd5 {[%clk 0:02:22.6]}
14. dxc5 {[%clk 0:01:39.2]} 14... Bxc5 {[%clk 0:02:22.1]} 15. Bc4 {[%clk
0:01:25.4]} 15... c6 {[%clk 0:02:18.6]} 16. Ng5 {[%clk 0:01:14.5]} 16... Qe7
{[%clk 0:02:12.4]} 17. Bxd5 {[%clk 0:00:56.5]} 17... cxd5 {[%clk 0:02:11.6]} 18.
Qe5 {[%clk 0:00:39]} 18... Re8 {[%clk 0:02:07.7]} 19. a3 {[%clk 0:00:22.9]}
19... Nc6 {[%clk 0:02:03.6]} 20. Qc3 {[%clk 0:00:22.9]} 20... e5 {[%clk
0:02:02.8]} 21. Rxd5 {[%clk 0:00:20.2]} 21... exf4 {[%clk 0:02:01]} 22. exf4
{[%clk 0:00:20.1]} 22... h6 {[%clk 0:01:56.8]} 23. Rxc5 {[%clk 0:00:12.8]} 23...
bxc5 {[%clk 0:01:46.9]} 24. Qc4+ {[%clk 0:00:13]} 24... Kh8 {[%clk 0:01:46.7]}
25. Nf7+ {[%clk 0:00:12.1]} 25... Kh7 {[%clk 0:01:46.7]} 0-1

[Event "*** SCC Grand Prix: Titled Tuesday Blitz"]
[Site "Chess.com"]
[Date "2020.07.14"]
[Round "8"]
[White "Semen_Khanin"]
[Black "Zablotsky"]
[Result "0-1"]
[WhiteElo "2748"]
[BlackElo "2608"]
[TimeControl "180+1"]
[EndTime "11:34:31 PDT"]
[Termination "Zablotsky won by resignation"]

1. e4 {[%clk 0:03:00.9]} 1... d5 {[%clk 0:02:59.8]} 2. exd5 {[%clk 0:02:59.3]}
2... Qxd5 {[%clk 0:02:59.8]} 3. Nc3 {[%clk 0:02:59.9]} 3... Qa5 {[%clk
0:03:00.7]} 4. d4 {[%clk 0:02:59.9]} 4... Nf6 {[%clk 0:02:59.8]} 5. Nf3 {[%clk
0:02:58.7]} 5... c6 {[%clk 0:03:00.5]} 6. Bc4 {[%clk 0:02:54.7]} 6... Bf5 {[%clk
0:03:00.8]} 7. O-O {[%clk 0:02:52.6]} 7... e6 {[%clk 0:03:01.1]} 8. Re1 {[%clk
0:02:48]} 8... Nbd7 {[%clk 0:03:01.1]} 9. h3 {[%clk 0:02:45.8]} 9... Bb4 {[%clk
0:03:01.4]} 10. Bd2 {[%clk 0:02:45]} 10... O-O {[%clk 0:03:01.1]} 11. a3 {[%clk
0:02:44.6]} 11... Bxc3 {[%clk 0:03:00.4]} 12. Bxc3 {[%clk 0:02:44.8]} 12... Qc7
{[%clk 0:03:00.7]} 13. Bd2 {[%clk 0:02:42.8]} 13... Rad8 {[%clk 0:03:01]} 14. c3
{[%clk 0:02:41.3]} 14... Rfe8 {[%clk 0:03:01.3]} 15. Qe2 {[%clk 0:02:41.3]}
15... Ne4 {[%clk 0:03:01.6]} 16. Be3 {[%clk 0:02:40.2]} 16... Nef6 {[%clk
0:03:02.5]} 17. Rad1 {[%clk 0:02:38.5]} 17... h6 {[%clk 0:03:02.8]} 18. a4
{[%clk 0:02:20.3]} 18... a6 {[%clk 0:03:01.7]} 19. Bc1 {[%clk 0:02:12.5]} 19...
Be4 {[%clk 0:02:59.2]} 20. Ne5 {[%clk 0:02:09.9]} 20... Nxe5 {[%clk 0:02:58.7]}
21. dxe5 {[%clk 0:02:10.1]} 21... Rxd1 {[%clk 0:02:57.8]} 22. Rxd1 {[%clk
0:02:06.6]} 22... Qxe5 {[%clk 0:02:57.6]} 23. f3 {[%clk 0:02:07]} 23... b5
{[%clk 0:02:55.4]} 24. axb5 {[%clk 0:01:51]} 24... axb5 {[%clk 0:02:54.8]} 25.
Bb3 {[%clk 0:01:21.2]} 25... Qh5 {[%clk 0:02:51.7]} 26. g4 {[%clk 0:01:18.3]}
26... Qxh3 {[%clk 0:02:50.9]} 27. fxe4 {[%clk 0:01:18.5]} 27... Nxg4 {[%clk
0:02:50.5]} 28. Bf4 {[%clk 0:01:18.3]} 28... Nf6 {[%clk 0:02:29.5]} 29. Rd3
{[%clk 0:01:14.3]} 29... Qh4 {[%clk 0:02:29]} 30. Rf3 {[%clk 0:01:04.2]} 30...
Qg4+ {[%clk 0:02:28.8]} 31. Kf1 {[%clk 0:00:54.7]} 31... Ra8 {[%clk 0:02:26.9]}
32. Ke1 {[%clk 0:00:26.4]} 32... Qg1+ {[%clk 0:02:18.6]} 33. Kd2 {[%clk
0:00:19.2]} 33... Qb1 {[%clk 0:02:17.6]} 34. Ke3 {[%clk 0:00:16.8]} 34... c5
{[%clk 0:02:12.8]} 35. Bc2 {[%clk 0:00:16]} 35... Qxb2 {[%clk 0:02:12.6]} 36. e5
{[%clk 0:00:16]} 36... Nd5+ {[%clk 0:02:11.7]} 37. Kf2 {[%clk 0:00:16.3]} 37...
Ra2 {[%clk 0:02:10.4]} 38. Bd3 {[%clk 0:00:14.7]} 38... Nxf4 {[%clk 0:02:09.8]}
39. Rxf4 {[%clk 0:00:14.5]} 39... Qb3 {[%clk 0:02:09.3]} 0-1

[Event "*** SCC Grand Prix: Titled Tuesday Blitz"]
[Site "Chess.com"]
[Date "2020.07.14"]
[Round "8"]
[White "MateSchmate"]
[Black "KyrgyzFighter"]
[Result "0-1"]
[WhiteElo "2396"]
[BlackElo "2291"]
[TimeControl "180+1"]
[EndTime "11:34:36 PDT"]
[Termination "KyrgyzFighter won by resignation"]

1. e4 {[%clk 0:02:36.3]} 1... d6 {[%clk 0:02:59.4]} 2. Nf3 {[%clk 0:02:33.7]}
2... e5 {[%clk 0:02:55.6]} 3. d4 {[%clk 0:02:32.3]} 3... Nd7 {[%clk 0:02:55.9]}
4. Nc3 {[%clk 0:02:25.7]} 4... Ngf6 {[%clk 0:02:55.7]} 5. Bc4 {[%clk 0:02:19.6]}
5... Be7 {[%clk 0:02:55.7]} 6. h3 {[%clk 0:02:00.1]} 6... O-O {[%clk 0:02:53.5]}
7. Be3 {[%clk 0:01:58.6]} 7... c6 {[%clk 0:02:53.3]} 8. a4 {[%clk 0:01:56.9]}
8... a5 {[%clk 0:02:52.8]} 9. Qd2 {[%clk 0:01:52]} 9... exd4 {[%clk 0:02:36.6]}
10. Nxd4 {[%clk 0:01:48.8]} 10... Ne5 {[%clk 0:02:35.3]} 11. Be2 {[%clk
0:01:47.7]} 11... d5 {[%clk 0:02:21.1]} 12. exd5 {[%clk 0:01:46.2]} 12... Nxd5
{[%clk 0:02:20.2]} 13. Nxd5 {[%clk 0:01:44.5]} 13... Qxd5 {[%clk 0:02:20.5]} 14.
Nf3 {[%clk 0:01:41.4]} 14... Nxf3+ {[%clk 0:02:03.9]} 15. Bxf3 {[%clk 0:01:40]}
15... Qe5 {[%clk 0:01:54.2]} 16. O-O-O {[%clk 0:01:26.6]} 16... Bf5 {[%clk
0:01:38.1]} 17. Rhe1 {[%clk 0:01:19.3]} 17... Qe6 {[%clk 0:01:32.1]} 18. Kb1
{[%clk 0:00:40.6]} 18... Qb3 {[%clk 0:01:30.7]} 19. Bd4 {[%clk 0:00:31.5]} 19...
Bb4 {[%clk 0:01:27.5]} 20. Bc3 {[%clk 0:00:16.6]} 20... Qxa4 {[%clk 0:01:23.7]}
21. Re7 {[%clk 0:00:14.4]} 21... Bxe7 {[%clk 0:01:23]} 0-1

[Event "*** SCC Grand Prix: Titled Tuesday Blitz"]
[Site "Chess.com"]
[Date "2020.07.14"]
[Round "8"]
[White "UKR_Master"]
[Black "TST2014"]
[Result "0-1"]
[WhiteElo "2325"]
[BlackElo "2487"]
[TimeControl "180+1"]
[EndTime "11:34:43 PDT"]
[Termination "TST2014 won by resignation"]

1. e4 {[%clk 0:03:00.9]} 1... c5 {[%clk 0:02:35.2]} 2. Nf3 {[%clk 0:03:00.8]}
2... Nc6 {[%clk 0:02:34.9]} 3. Bb5 {[%clk 0:03:00.3]} 3... g6 {[%clk 0:02:34.6]}
4. Bxc6 {[%clk 0:03:00.3]} 4... dxc6 {[%clk 0:02:34.9]} 5. d3 {[%clk 0:02:59.1]}
5... Bg7 {[%clk 0:02:35.2]} 6. Nc3 {[%clk 0:02:59.4]} 6... Nf6 {[%clk
0:02:34.8]} 7. Be3 {[%clk 0:02:59.1]} 7... b6 {[%clk 0:02:33.6]} 8. h3 {[%clk
0:02:56.2]} 8... Nd7 {[%clk 0:02:32.7]} 9. Qd2 {[%clk 0:02:55.8]} 9... h6 {[%clk
0:02:32.6]} 10. g4 {[%clk 0:02:54.6]} 10... e5 {[%clk 0:02:31.1]} 11. Ng1 {[%clk
0:02:48.2]} 11... Nf8 {[%clk 0:02:29.4]} 12. O-O-O {[%clk 0:02:28.9]} 12... Ne6
{[%clk 0:02:27.4]} 13. Nce2 {[%clk 0:02:28.9]} 13... a5 {[%clk 0:02:23.8]} 14.
f4 {[%clk 0:02:25.4]} 14... exf4 {[%clk 0:02:20.6]} 15. Nxf4 {[%clk 0:02:25.6]}
15... a4 {[%clk 0:02:17.8]} 16. a3 {[%clk 0:02:22.7]} 16... Nxf4 {[%clk
0:02:10.1]} 17. Bxf4 {[%clk 0:02:21.4]} 17... h5 {[%clk 0:02:07.6]} 18. Nf3
{[%clk 0:02:16.6]} 18... hxg4 {[%clk 0:02:06.9]} 19. hxg4 {[%clk 0:02:16.7]}
19... Bxg4 {[%clk 0:02:06.8]} 20. Rxh8+ {[%clk 0:02:15.9]} 20... Bxh8 {[%clk
0:02:06.7]} 21. Rh1 {[%clk 0:02:15.9]} 21... Bg7 {[%clk 0:01:53.1]} 22. Ne5
{[%clk 0:02:14.1]} 22... Be6 {[%clk 0:01:41.3]} 23. Qf2 {[%clk 0:01:12.3]} 23...
Qf6 {[%clk 0:01:28.4]} 24. Qg3 {[%clk 0:00:57.3]} 24... g5 {[%clk 0:01:17.6]}
25. Ng4 {[%clk 0:00:19]} 25... Qxf4+ {[%clk 0:01:15.6]} 26. Qxf4 {[%clk
0:00:18.7]} 26... gxf4 {[%clk 0:01:16.5]} 0-1

[Event "*** SCC Grand Prix: Titled Tuesday Blitz"]
[Site "Chess.com"]
[Date "2020.07.14"]
[Round "8"]
[White "TimofeevAr"]
[Black "gena217"]
[Result "1-0"]
[WhiteElo "2808"]
[BlackElo "2907"]
[TimeControl "180+1"]
[EndTime "11:34:44 PDT"]
[Termination "TimofeevAr won by resignation"]

1. c4 {[%clk 0:02:36.9]} 1... e6 {[%clk 0:02:57.4]} 2. Nf3 {[%clk 0:02:36.1]}
2... d5 {[%clk 0:02:57.9]} 3. e3 {[%clk 0:02:36.5]} 3... Nf6 {[%clk 0:02:57.2]}
4. b3 {[%clk 0:02:36.4]} 4... c5 {[%clk 0:02:52.8]} 5. Bb2 {[%clk 0:02:36.4]}
5... Nc6 {[%clk 0:02:52.6]} 6. cxd5 {[%clk 0:02:36.7]} 6... exd5 {[%clk
0:02:53.2]} 7. Bb5 {[%clk 0:02:36.3]} 7... Bd6 {[%clk 0:02:52]} 8. O-O {[%clk
0:02:35.7]} 8... O-O {[%clk 0:02:51.3]} 9. d4 {[%clk 0:02:35.5]} 9... cxd4
{[%clk 0:02:51.4]} 10. Nxd4 {[%clk 0:02:25.7]} 10... Bc7 {[%clk 0:02:51.2]} 11.
Be2 {[%clk 0:02:21.1]} 11... Qd6 {[%clk 0:02:36.8]} 12. g3 {[%clk 0:02:20.9]}
12... Bb6 {[%clk 0:02:23.3]} 13. Nxc6 {[%clk 0:02:13.8]} 13... bxc6 {[%clk
0:02:20.7]} 14. Nd2 {[%clk 0:02:12.8]} 14... Re8 {[%clk 0:02:18.4]} 15. Nf3
{[%clk 0:02:11.5]} 15... Bh3 {[%clk 0:02:10.8]} 16. Re1 {[%clk 0:02:09.5]} 16...
Ne4 {[%clk 0:01:59.3]} 17. Qc1 {[%clk 0:01:43.3]} 17... Rac8 {[%clk 0:01:32.2]}
18. Bf1 {[%clk 0:01:41.5]} 18... Qh6 {[%clk 0:01:21.4]} 19. Qc2 {[%clk
0:01:31.5]} 19... Nxf2 {[%clk 0:01:06.6]} 20. Qxf2 {[%clk 0:01:30.5]} 20... Rxe3
{[%clk 0:01:06.4]} 21. Nd4 {[%clk 0:01:29.2]} 21... Re4 {[%clk 0:00:49.2]} 22.
Rxe4 {[%clk 0:01:24.6]} 22... dxe4 {[%clk 0:00:50.1]} 23. Bc1 {[%clk 0:01:22.9]}
23... Qd6 {[%clk 0:00:34]} 24. Be3 {[%clk 0:01:21.6]} 24... Bd7 {[%clk
0:00:34.3]} 25. Bc4 {[%clk 0:01:13.6]} 25... Rf8 {[%clk 0:00:32.6]} 26. Rf1
{[%clk 0:01:12.9]} 26... Qg6 {[%clk 0:00:32.1]} 27. Ne2 {[%clk 0:01:06.3]} 1-0

[Event "*** SCC Grand Prix: Titled Tuesday Blitz"]
[Site "Chess.com"]
[Date "2020.07.14"]
[Round "8"]
[White "Izoria123"]
[Black "tdf98pantani"]
[Result "1-0"]
[WhiteElo "2888"]
[BlackElo "2679"]
[TimeControl "180+1"]
[EndTime "11:34:48 PDT"]
[Termination "Izoria123 won by resignation"]

1. Nf3 {[%clk 0:03:00.9]} 1... Nf6 {[%clk 0:02:56.4]} 2. c4 {[%clk 0:03:00.3]}
2... c6 {[%clk 0:02:56.4]} 3. g3 {[%clk 0:02:52.9]} 3... b5 {[%clk 0:02:47.3]}
4. Bg2 {[%clk 0:02:53.8]} 4... bxc4 {[%clk 0:02:47.1]} 5. O-O {[%clk 0:02:50]}
5... d5 {[%clk 0:02:42.3]} 6. b3 {[%clk 0:02:48.3]} 6... cxb3 {[%clk 0:02:41.9]}
7. axb3 {[%clk 0:02:49.2]} 7... e6 {[%clk 0:02:40.5]} 8. Qc2 {[%clk 0:02:48.7]}
8... c5 {[%clk 0:02:37.3]} 9. Ba3 {[%clk 0:02:37.4]} 9... Nbd7 {[%clk
0:02:30.8]} 10. d4 {[%clk 0:02:36.9]} 10... cxd4 {[%clk 0:02:22]} 11. Bxf8
{[%clk 0:02:37.8]} 11... Nxf8 {[%clk 0:02:07.8]} 12. Nxd4 {[%clk 0:02:36.4]}
12... Bd7 {[%clk 0:02:02.6]} 13. Nc3 {[%clk 0:02:31.5]} 13... Ng6 {[%clk
0:02:01.4]} 14. e4 {[%clk 0:02:28.5]} 14... dxe4 {[%clk 0:01:40.9]} 15. Nxe4
{[%clk 0:02:29.4]} 15... Nxe4 {[%clk 0:01:40.9]} 16. Qxe4 {[%clk 0:02:28.2]}
16... Rb8 {[%clk 0:01:21.8]} 17. Nc6 {[%clk 0:02:06.1]} 17... Bxc6 {[%clk
0:01:20.8]} 18. Qxc6+ {[%clk 0:02:07]} 18... Kf8 {[%clk 0:01:14.7]} 19. Rxa7
{[%clk 0:02:03.9]} 19... Kg8 {[%clk 0:01:10.7]} 20. Rfa1 {[%clk 0:01:59.2]}
20... h5 {[%clk 0:01:09.5]} 21. h4 {[%clk 0:01:52.6]} 21... Qf6 {[%clk
0:01:08.9]} 22. R1a5 {[%clk 0:01:36.3]} 22... Rf8 {[%clk 0:00:49.1]} 23. Rb7
{[%clk 0:01:25]} 23... Ne5 {[%clk 0:00:46.2]} 24. Qc5 {[%clk 0:01:24.8]} 24...
Ng6 {[%clk 0:00:29]} 25. Raa7 {[%clk 0:01:23.7]} 25... Kh7 {[%clk 0:00:28.6]}
26. Qxh5+ {[%clk 0:01:21.5]} 26... Kg8 {[%clk 0:00:29]} 27. Qc5 {[%clk
0:01:22.1]} 27... Kh7 {[%clk 0:00:27.5]} 28. Be4 {[%clk 0:01:20.5]} 28... Kh6
{[%clk 0:00:26.6]} 29. Qc1+ {[%clk 0:01:17.8]} 29... Kh5 {[%clk 0:00:24.3]} 30.
Ra5+ {[%clk 0:01:15.5]} 30... e5 {[%clk 0:00:24.2]} 1-0

[Event "*** SCC Grand Prix: Titled Tuesday Blitz"]
[Site "Chess.com"]
[Date "2020.07.14"]
[Round "8"]
[White "artichaud"]
[Black "northridgehawk"]
[Result "0-1"]
[WhiteElo "2078"]
[BlackElo "2355"]
[TimeControl "180+1"]
[EndTime "11:34:48 PDT"]
[Termination "northridgehawk won on time"]

1. e4 {[%clk 0:02:58.2]} 1... e5 {[%clk 0:02:57.5]} 2. Nf3 {[%clk 0:02:57.9]}
2... Nc6 {[%clk 0:02:58.4]} 3. d3 {[%clk 0:02:56.9]} 3... Bc5 {[%clk 0:02:55.7]}
4. Be2 {[%clk 0:02:56.5]} 4... d6 {[%clk 0:02:55.6]} 5. c3 {[%clk 0:02:56.5]}
5... a6 {[%clk 0:02:55.5]} 6. O-O {[%clk 0:02:54.6]} 6... Nf6 {[%clk 0:02:55.3]}
7. b4 {[%clk 0:02:52.9]} 7... Ba7 {[%clk 0:02:53.3]} 8. Nbd2 {[%clk 0:02:52.5]}
8... h6 {[%clk 0:02:49.1]} 9. a3 {[%clk 0:02:51.5]} 9... g5 {[%clk 0:02:47.4]}
10. Nc4 {[%clk 0:02:48.5]} 10... g4 {[%clk 0:02:45.6]} 11. Nfd2 {[%clk
0:02:48.4]} 11... Rg8 {[%clk 0:02:44]} 12. Ne3 {[%clk 0:02:43.7]} 12... h5
{[%clk 0:02:37.4]} 13. Kh1 {[%clk 0:02:25]} 13... Be6 {[%clk 0:02:34.9]} 14.
Ndc4 {[%clk 0:02:14.7]} 14... Bxc4 {[%clk 0:02:27.2]} 15. Nxc4 {[%clk
0:02:11.6]} 15... d5 {[%clk 0:02:22.1]} 16. exd5 {[%clk 0:02:02.4]} 16... Nxd5
{[%clk 0:02:23]} 17. Qc2 {[%clk 0:01:52.9]} 17... Qe7 {[%clk 0:02:15.1]} 18. Ne3
{[%clk 0:01:44.2]} 18... Nf4 {[%clk 0:02:12.5]} 19. Nc4 {[%clk 0:01:19.6]} 19...
O-O-O {[%clk 0:02:05.4]} 20. Bxf4 {[%clk 0:01:15.9]} 20... exf4 {[%clk
0:02:06.3]} 21. d4 {[%clk 0:01:12.3]} 21... Qf6 {[%clk 0:01:57]} 22. Bd3 {[%clk
0:01:07.5]} 22... f3 {[%clk 0:01:55.2]} 23. Rfe1 {[%clk 0:00:51.1]} 23... fxg2+
{[%clk 0:01:53.9]} 24. Kg1 {[%clk 0:00:51.1]} 24... Rxd4 {[%clk 0:01:50.5]} 25.
cxd4 {[%clk 0:00:17.5]} 25... Nxd4 {[%clk 0:01:51.4]} 26. Rac1 {[%clk
0:00:04.2]} 26... Nxc2 {[%clk 0:01:46.6]} 27. Rxc2 {[%clk 0:00:04.2]} 27... Rd8
{[%clk 0:01:41.6]} 28. Be4 {[%clk 0:00:02.2]} 28... h4 {[%clk 0:01:34.8]} 29.
Bxg2 {[%clk 0:00:01.4]} 29... g3 {[%clk 0:01:33.5]} 30. hxg3 {[%clk 0:00:01.1]}
30... hxg3 {[%clk 0:01:34.4]} 0-1